fUSD/lending_fUSD_20241227
["ID","MTS","AMOUNT","RATE_DAILY","PERIOD"]
[346825493,1735307444763,-1689.95,0.00010874,2]
[346825494,1735307444773,-179.29503894,0.00010874,2]
[346825495,1735307444783,-816.25,0.00010874,2]
[346825496,1735307444793,-500.0,0.00010874,2]
[346825497,1735307444803,-500.0,0.00010874,2]
[346825498,1735307444812,-1239.9,0.00010874,2]
[346825499,1735307444821,-500.0,0.00010874,2]
[346825500,1735307444830,-714.92,0.00010874,2]
[346825501,1735307444840,-500.0,0.00010874,2]
[346825502,1735307444849,-500.0,0.00010874,2]
[346825503,1735307444858,-1518.84,0.00010874,2]
[346825504,1735307444868,-500.0,0.00010874,2]
[346825505,1735307444877,-1567.28,0.00010874,2]
[346825506,1735307444886,-587.64,0.00010874,2]
[346825507,1735307444895,-500.0,0.00010874,2]
[346825508,1735307444905,-651.36,0.00010874,2]
[346825509,1735307444914,-685.52,0.00010874,2]
[346825510,1735307444923,-500.0,0.00010874,2]
[346825511,1735307444933,-500.0,0.00010874,2]
[346825512,1735307444942,-508.22176619,0.00010874,2]
[346825513,1735307444951,-500.0,0.00010874,2]
[346825514,1735307444960,-1500.0,0.00010874,2]
[346825515,1735307444969,-505.25564385,0.00010874,2]
[346825516,1735307444979,-500.0,0.00010874,2]
[346825517,1735307444988,-500.0,0.00010874,2]
[346825518,1735307444997,-500.0,0.00010874,2]
[346825519,1735307445007,-500.0,0.00010874,2]
[346825520,1735307445016,-1274.08,0.00010874,2]
[346825521,1735307445028,-500.0,0.00010874,2]
[346825522,1735307445038,-500.0,0.00010874,2]
[346825523,1735307445048,-500.0,0.00010874,2]
[346825524,1735307445057,-500.0,0.00010874,2]
[346825525,1735307445067,-1098.51,0.00010874,2]
[346825526,1735307445078,-500.0,0.00010874,2]
[346825527,1735307445088,-12592.63,0.00010874,2]
[346825528,1735307445097,-500.0,0.00010874,2]
[346825529,1735307445107,-907.99,0.00010874,2]
[346825530,1735307445116,-500.0,0.00010874,2]
[346825531,1735307445125,-500.0,0.00010874,2]
[346825532,1735307445134,-500.0,0.00010874,2]
[346825533,1735307445143,-999.3,0.00010874,2]
[346825534,1735307445153,-500.0,0.00010874,2]
[346825535,1735307445162,-500.0,0.00010874,2]
[346825536,1735307445172,-1217.5,0.00010874,2]
[346825537,1735307445181,-500.0,0.00010874,2]
[346825538,1735307445190,-1542.05,0.00010874,2]
[346825539,1735307445199,-703.57,0.00010874,2]
[346825540,1735307445209,-863.14,0.00010874,2]
[346825541,1735307445218,-999.82,0.00010874,2]
[346825542,1735307445228,-500.0,0.00010874,2]
[346825543,1735307445237,-500.0,0.00010874,2]
[346825544,1735307445246,-500.0,0.00010874,2]
[346825545,1735307445257,-753.7,0.00010874,2]
[346825546,1735307445266,-1659.6,0.00010874,2]
[346825547,1735307445279,-500.0,0.00010874,2]
[346825548,1735307445291,-2368.71,0.00010874,2]
[346825549,1735307445300,-1064.62,0.00010874,2]
[346825550,1735307445310,-2430.43,0.00010874,2]
[346825551,1735307445320,-1022.93,0.00010874,2]
[346825552,1735307445330,-500.0,0.00010874,2]
[346825553,1735307445339,-1369.97,0.00010874,2]
[346825554,1735307445349,-500.0,0.00010874,2]
[346825555,1735307445358,-1494.49,0.00010874,2]
[346825556,1735307445367,-1062.44,0.00010874,2]
[346825557,1735307445378,-500.0,0.00010874,2]
[346825558,1735307445387,-306.43018997,0.00010874,2]
[346825559,1735307445397,-616.6,0.00010874,2]
[346825560,1735307445406,-1128.18,0.00010874,2]
[346825561,1735307445416,-622.86,0.00010874,2]
[346825562,1735307445425,-500.0,0.00010874,2]
[346825563,1735307445434,-500.0,0.00010874,2]
[346825564,1735307445445,-500.0,0.00010874,2]
[346825565,1735307445455,-500.0,0.00010874,2]
[346825566,1735307445464,-1733.47,0.00010874,2]
[346825567,1735307445474,-500.0,0.00010874,2]
[346825568,1735307445484,-594.31,0.00010874,2]
[346825569,1735307445493,-686.79,0.00010874,2]
[346825570,1735307445503,-2039.82,0.00010874,2]
[346825571,1735307445515,-333.20883698,0.00010874,2]
[346825572,1735307445543,-166.79116302,0.00010874,2]
[346825573,1735307445553,-500.0,0.00010874,2]
[346825574,1735307445562,-500.0,0.00010874,2]
[346825575,1735307445571,-273.03082295,0.00010874,2]
[346825576,1735307445583,-226.96917705,0.00010874,2]
[346825577,1735307445594,-500.0,0.00010874,2]
[346825578,1735307445603,-1807.6,0.00010874,2]
[346825579,1735307445612,-381.56883698,0.00010874,2]
[346825582,1735307446450,-24.34003202,0.00010873,2]
[346825583,1735307446461,-1258.85996798,0.00010873,2]
[346825584,1735307446471,-500.0,0.00010873,2]
[346825585,1735307446481,-519.02,0.00010873,2]
[346825586,1735307446491,-500.0,0.00010873,2]
[346825587,1735307446500,-535.77558437,0.00010874,2]
[346825588,1735307446551,-1572.00557865,0.00010874,2]
[346825589,1735307446562,-1764.77,0.00010874,2]
[346825590,1735307446571,-500.0,0.00010874,2]
[346825591,1735307446582,-952.78,0.00010874,2]
[346825592,1735307446592,-500.0,0.00010874,2]
[346825593,1735307446602,-500.0,0.00010874,2]
[346825595,1735307446612,-500.0,0.00010874,2]
[346825597,1735307446623,-991.7,0.00010874,2]
[346825598,1735307446633,-500.0,0.00010874,2]
[346825600,1735307446643,-500.0,0.00010874,2]
[346825602,1735307446653,-972.32,0.00010874,2]
[346825604,1735307446663,-500.0,0.00010874,2]
[346825606,1735307446675,-3027.11,0.00010874,2]
[346825608,1735307446684,-599.77,0.00010874,2]
[346825610,1735307446694,-256.43797312,0.00010874,2]
[346825623,1735307448325,-500.0,0.00010873,2]
[346825624,1735307448335,-500.0,0.00010873,2]
[346825625,1735307448346,-738.51202688,0.00010874,2]
[346825626,1735307448355,-454.38463312,0.00010874,2]
[346825627,1735307448367,-837.25536688,0.00010874,2]
[346825628,1735307448376,-1012.85,0.00010874,2]
[346825629,1735307448386,-500.0,0.00010874,2]
[346825630,1735307448396,-678.68,0.00010874,2]
[346825631,1735307448406,-500.0,0.00010874,2]
[346825632,1735307448415,-903.54,0.00010874,2]
[346825633,1735307448425,-500.0,0.00010874,2]
[346825634,1735307448434,-1206.9,0.00010874,2]
[346825635,1735307448444,-652.77463314,0.00010874,2]
[346825636,1735307448525,-287.38536686,0.00010874,2]
[346825637,1735307448538,-1214.95,0.00010874,2]
[346825638,1735307448548,-649.61,0.00010874,2]
[346825639,1735307448559,-505.16900763,0.00010874,2]
[346825640,1735307448568,-1255.62,0.00010874,2]
[346825641,1735307448578,-1747.23,0.00010874,2]
[346825642,1735307448589,-500.0,0.00010874,2]
[346825643,1735307448600,-1065.1,0.00010874,2]
[346825644,1735307448609,-500.0,0.00010874,2]
[346825645,1735307448619,-500.0,0.00010874,2]
[346825646,1735307448629,-505.13265722,0.00010874,2]
[346825647,1735307448639,-3276.28,0.00010874,2]
[346825648,1735307448648,-2053.0,0.00010874,2]
[346825649,1735307448657,-2478.8,0.00010874,2]
[346825650,1735307448667,-500.0,0.00010874,2]
[346825651,1735307448677,-1035.9,0.00010874,2]
[346825652,1735307448687,-500.0,0.00010874,2]
[346825653,1735307448696,-738.06,0.00010874,2]
[346825654,1735307448706,-500.0,0.00010874,2]
[346825655,1735307448716,-500.0,0.00010874,2]
[346825656,1735307448725,-500.0,0.00010874,2]
[346825657,1735307448735,-1047.95,0.00010874,2]
[346825658,1735307448745,-1244.29,0.00010874,2]
[346825659,1735307448754,-500.0,0.00010874,2]
[346825660,1735307448763,-500.0,0.00010874,2]
[346825661,1735307448773,-500.0,0.00010874,2]
[346825662,1735307448784,-885.66,0.00010874,2]
[346825663,1735307448794,-1421.28,0.00010874,2]
[346825664,1735307448804,-500.0,0.00010874,2]
[346825665,1735307448814,-961.69,0.00010874,2]
[346825666,1735307448823,-831.97,0.00010874,2]
[346825667,1735307448833,-500.0,0.00010874,2]
[346825668,1735307448842,-500.0,0.00010874,2]
[346825669,1735307448851,-500.0,0.00010874,2]
[346825670,1735307448861,-500.0,0.00010874,2]
[346825671,1735307448870,-1175.73,0.00010874,2]
[346825672,1735307448879,-174.50266998,0.00010874,2]
[346825673,1735307448889,-500.0,0.00010874,2]
[346825674,1735307448898,-500.0,0.00010874,2]
[346825675,1735307448908,-500.0,0.00010874,2]
[346825676,1735307448917,-2453.91,0.00010874,2]
[346825677,1735307448926,-1320.09,0.00010874,2]
[346825678,1735307448935,-1276.0572836,0.00010874,2]
[346825679,1735307448966,-216.4327164,0.00010874,2]
[346825680,1735307448975,-1377.86547656,0.00010874,2]
[346825681,1735307448987,-1959.80452344,0.00010874,2]
[346825682,1735307448996,-4636.64849894,0.00010874,2]
[346825683,1735307449015,-846.20742,0.00010874,2]
[346825684,1735307449046,-271.42499999,0.00010874,2]
[346825685,1735307514934,156.651929,0.0001551,24]
[346825686,1735307626970,165.155237,0.0001551,24]
[346825687,1735307627255,165.155237,0.0001551,24]
[346825688,1735307633668,155.415703,0.0001551,24]
[346825689,1735307633966,155.415703,0.0001551,24]
[346825690,1735307701642,595.16,8.275e-05,2]
[346825720,1735308632491,-229.82,9.977e-05,2]
[346825721,1735308632501,-577.88277775,9.977e-05,2]
[346825722,1735308632513,-41146.53556079,9.977e-05,2]
[346825723,1735308632523,-15480.10139126,9.977e-05,2]
[346825724,1735308632534,-11905.85369211,9.977e-05,2]
[346825725,1735308632544,-3151.14742223,9.977e-05,2]
[346825726,1735308632553,-229.82,9.98e-05,2]
[346825727,1735308632563,-229.82,9.982e-05,2]
[346825728,1735308632572,-229.82,9.985e-05,2]
[346825729,1735308632581,-163.41,9.985e-05,2]
[346825730,1735308632592,-229.82,9.988e-05,2]
[346825731,1735308632602,-229.82,9.99e-05,2]
[346825732,1735308632611,-229.82,9.993e-05,2]
[346825733,1735308632621,-229.82,9.995e-05,2]
[346825734,1735308632630,-229.82,9.998e-05,2]
[346825735,1735308632639,-229.82,0.00010001,2]
[346825736,1735308632649,-229.82,0.00010003,2]
[346825737,1735308632658,-229.82,0.00010006,2]
[346825738,1735308632667,-229.82,0.00010009,2]
[346825739,1735308632676,-229.82,0.00010011,2]
[346825740,1735308632685,-229.82,0.00010014,2]
[346825741,1735308632694,-1000.0,0.00010016,2]
[346825742,1735308632704,-229.82,0.00010016,2]
[346825743,1735308632713,-743.36,0.00010019,2]
[346825744,1735308632723,-229.82,0.00010019,2]
[346825745,1735308632732,-229.82,0.00010022,2]
[346825746,1735308632740,-229.82,0.00010024,2]
[346825747,1735308632749,-229.82,0.00010027,2]
[346825748,1735308632758,-4346.38677971,0.00010034,2]
[346825749,1735308632770,-19553.61322029,0.00010034,2]
[346825750,1735308632780,-664.59,0.00010155,2]
[346825751,1735308632789,-167.62,0.00010266,2]
[346825753,1735308632798,-250.0,0.00010273,2]
[346825755,1735308632808,-250.0,0.00010273,2]
[346825757,1735308632817,-12464.0,0.00010396,2]
[346825759,1735308632826,-9999.99,0.00010475,2]
[346825761,1735308632837,-595.16,0.00010539,2]
[346825763,1735308632846,-2500.0,0.00010672,2]
[346825765,1735308632857,-6594.4927,0.00010673,2]
[346825767,1735308632867,-5664.0114,0.00010673,2]
[346825769,1735308632876,-79314.16367971,0.000107,2]
[346825771,1735308632887,-35557.87245865,0.000107,2]
[346825773,1735308632899,-457.32324151,0.000107,2]
[346825777,1735308632922,-614.72573488,0.000107,2]
[346825779,1735308632934,-263743.36856045,0.000107,2]
[346825781,1735308632945,-1525.15327041,0.000107,2]
[346825783,1735308632956,-42585.0887766,0.000107,2]
[346825785,1735308632967,-23477.56739431,0.000107,2]
[346825789,1735308633001,-301.6,0.000107,2]
[346825792,1735308633012,-500.0,0.000107,2]
[346826112,1735308638358,-500.0,0.00010699,2]
[346826113,1735308638367,-1178.25413862,0.000107,2]
[346826114,1735308638379,-3123.54115014,0.000107,2]
[346826115,1735308638508,-24654.61407904,0.000107,2]
[346826116,1735308638520,-4999.9999995,0.000107,2]
[346826117,1735308638569,-7771.62024578,0.000107,2]
[346826139,1735308640400,-2370.58391407,0.000107,2]
[346826140,1735308640426,-9.40639933,0.000107,2]
[346826141,1735308640436,-3125.848,0.00010772,2]
[346826142,1735308640446,-164.909,0.00010772,2]
[346826143,1735308640457,-3821.74004546,0.00010772,2]
[346826144,1735308640467,-25177.81853978,0.00010772,2]
[346826145,1735308640480,-4822.17146022,0.00010772,2]
[346826146,1735308640490,-29977.70276537,0.00010772,2]
[346826147,1735308640501,-22.28723463,0.00010772,2]
[346826148,1735308640510,-896.6,0.00010772,2]
[346826149,1735308640520,-1550.58099968,0.00010772,2]
[346826150,1735308640531,-467.20020013,0.00010772,2]
[346826151,1735308640629,-1672.43880019,0.00010772,2]
[346826152,1735308640639,-986.77,0.00010772,2]
[346826153,1735308640649,-74.44481485,0.00010772,2]
[346826154,1735308640660,-9777.70849916,0.00010772,2]
[346826155,1735308640671,-2419.23323036,0.00010772,2]
[346826156,1735308640687,-356.75950037,0.00010772,2]
[346826157,1735308640772,-826.52395526,0.00010772,2]
[346826158,1735308640782,-588.24794711,0.00010772,2]
[346826165,1735308643887,-854.60872885,0.00010772,2]
[346826181,1735308647289,-406.97745693,0.00010772,2]
[346826182,1735308647301,-1269.45586711,0.00010772,2]
[346826183,1735308647310,-1983.67,0.00010772,2]
[346826184,1735308647321,-3247.75,0.00010772,2]
[346826185,1735308647330,-5347.82,0.00010772,2]
[346826186,1735308647341,-3110.2,0.00010772,2]
[346826187,1735308647352,-1447.67,0.00010772,2]
[346826188,1735308647361,-779.87,0.00010772,2]
[346826189,1735308647371,-500.0,0.00010772,2]
[346826190,1735308647380,-1878.48,0.00010772,2]
[346826191,1735308647390,-525.07,0.00010772,2]
[346826192,1735308647399,-1029.85,0.00010772,2]
[346826193,1735308647408,-1689.32,0.00010772,2]
[346826194,1735308647418,-1447.43,0.00010772,2]
[346826195,1735308647428,-1587.0,0.00010772,2]
[346826196,1735308647437,-5756.25,0.00010772,2]
[346826197,1735308647447,-1596.14,0.00010772,2]
[346826198,1735308647458,-6273.07,0.00010772,2]
[346826199,1735308647468,-258.46706158,0.00010772,2]
[346826200,1735308647480,-272.85422711,0.00010772,2]
[346826201,1735308647489,-500.0,0.00010772,2]
[346826202,1735308647500,-9805.0099,0.00010773,2]
[346826203,1735308647509,-14027.08123262,0.00010773,2]
[346826204,1735308647521,-10824.56746738,0.00010773,2]
[346826205,1735308647531,-1652.6406,0.00010773,2]
[346826206,1735308647541,-8087.6584,0.00010773,2]
[346826207,1735308647551,-1000.0,0.00010773,2]
[346826208,1735308647561,-5000.0,0.00010773,2]
[346826209,1735308647571,-4295.5834,0.00010773,2]
[346826210,1735308647581,-21051.2037418,0.00010773,2]
[346826211,1735308647628,-3086.88552804,0.00010773,2]
[346826212,1735308647646,-2277.0773393,0.00010773,2]
[346826213,1735308647662,-1708.415,0.00010773,2]
[346826214,1735308647693,-3488.5851,0.00010773,2]
[346826215,1735308647717,-658.95651699,0.00010773,2]
[346826217,1735308843190,564.78,8.219e-05,2]
[346826221,1735309229208,200.9,0.0002,120]
[346826224,1735309358237,235.62476642,0.0002,120]
[346826241,1735309831394,536.54,8.219e-05,2]
[346826250,1735309831608,-250.0,9.769e-05,2]
[346826251,1735309831619,-250.0,9.784e-05,2]
[346826252,1735309831629,-703.48,9.789e-05,2]
[346826253,1735309831640,-3646.52,9.84e-05,2]
[346826254,1735309831658,-1116.199997,9.84e-05,2]
[346826255,1735309831740,-1221.47,9.84e-05,2]
[346826256,1735309831752,-600.0,9.84e-05,2]
[346826257,1735309831832,-2422.3041439,9.84e-05,2]
[346826258,1735309831845,-900.0,9.84e-05,2]
[346826259,1735309831856,-413.21193929,9.84e-05,2]
[346826260,1735309831927,-2855.91574988,9.84e-05,2]
[346826263,1735309831939,-10724.37816993,9.84e-05,2]
[346826265,1735309831948,-1000.0,9.874e-05,2]
[346826267,1735309831958,-330.08,9.886e-05,2]
[346826269,1735309831968,-342.67,0.00010137,2]
[346826271,1735309831978,-157.96,0.00010137,2]
[346826273,1735309831987,-1282.83,0.000102,2]
[346826275,1735309831997,-500.0,0.00010302,2]
[346826277,1735309832007,-2800.0,0.00010302,2]
[346826279,1735309832016,-536.54,0.00010464,2]
[346826281,1735309832026,-9347.22773574,0.00010475,2]
[346826408,1735309837903,-1374.12933306,0.00010475,2]
[346826411,1735309837935,-2682.394968,0.00010475,2]
[346826412,1735309837968,-1171.29480095,0.00010475,2]
[346826425,1735309842599,-5681.86316225,0.00010475,2]
[346826426,1735309842610,-2347.23568031,0.00010475,2]
[346826427,1735309842621,-6178.1991742,0.00010475,2]
[346826428,1735309842688,-1213.00845908,0.00010475,2]
[346826429,1735309842774,-20261.54668641,0.00010475,2]
[346826430,1735309842784,-977.37,0.00010548,2]
[346826431,1735309842794,-150.52,0.00010548,2]
[346826432,1735309842804,-185.15,0.00010548,2]
[346826433,1735309842817,-436.35,0.00010548,2]
[346826434,1735309842826,-7305.5856,0.000106,2]
[346826435,1735309842836,-422.9386,0.00010669,2]
[346826436,1735309842845,-9005.77,0.000107,2]
[346826437,1735309842855,-500.0,0.00010768,2]
[346826438,1735309842865,-500.0,0.00010768,2]
[346826439,1735309842874,-500.0,0.00010768,2]
[346826440,1735309842884,-500.0,0.00010768,2]
[346826441,1735309842894,-500.0,0.00010768,2]
[346826442,1735309842904,-2023.75,0.00010768,2]
[346826443,1735309842913,-500.0,0.00010768,2]
[346826444,1735309842922,-500.0,0.00010768,2]
[346826445,1735309842932,-500.0,0.00010768,2]
[346826446,1735309842941,-500.0,0.00010768,2]
[346826447,1735309842951,-500.0,0.00010768,2]
[346826448,1735309842961,-500.0,0.00010768,2]
[346826449,1735309842970,-636.36,0.00010768,2]
[346826450,1735309842980,-681.65,0.00010768,2]
[346826451,1735309842989,-822.94,0.00010768,2]
[346826452,1735309842999,-691.0,0.00010768,2]
[346826453,1735309843008,-500.0,0.00010768,2]
[346826454,1735309843018,-1639.76,0.00010768,2]
[346826455,1735309843027,-500.0,0.00010768,2]
[346826456,1735309843037,-500.0,0.00010768,2]
[346826457,1735309843047,-500.0,0.00010768,2]
[346826458,1735309843057,-1488.97,0.00010768,2]
[346826459,1735309843070,-1407.96,0.00010769,2]
[346826460,1735309843079,-3011.14,0.00010769,2]
[346826461,1735309843089,-500.0,0.00010769,2]
[346826462,1735309843099,-5574.19,0.00010769,2]
[346826463,1735309843109,-2849.22,0.00010769,2]
[346826464,1735309843119,-2805.73,0.00010769,2]
[346826465,1735309843129,-4747.24,0.00010769,2]
[346826466,1735309843138,-4747.24,0.00010769,2]
[346826467,1735309843148,-2825.76,0.00010769,2]
[346826468,1735309843157,-2073.28,0.00010769,2]
[346826469,1735309843168,-15608.63,0.00010769,2]
[346826470,1735309843177,-153.753902,0.00010769,2]
[346826471,1735309843187,-152.363359,0.00010769,2]
[346826472,1735309843196,-2304.450009,0.00010769,2]
[346826473,1735309843206,-1550.46,0.00010769,2]
[346826474,1735309843215,-2229.255713,0.00010769,2]
[346826475,1735309843224,-6011.69,0.00010769,2]
[346826476,1735309843235,-2332.34,0.00010769,2]
[346826477,1735309843244,-2495.77,0.00010769,2]
[346826478,1735309843254,-2551.33,0.00010769,2]
[346826479,1735309843263,-4216.24,0.00010769,2]
[346826480,1735309843272,-2729.62,0.00010769,2]
[346826481,1735309843281,-1052.61,0.00010769,2]
[346826482,1735309843291,-3651.39,0.00010769,2]
[346826483,1735309843300,-1306.67,0.00010769,2]
[346826484,1735309843315,-911.26,0.00010769,2]
[346826485,1735309843326,-1549.68,0.00010769,2]
[346826486,1735309843336,-2418.91,0.00010769,2]
[346826487,1735309843345,-2109.19,0.00010769,2]
[346826488,1735309843355,-1217.39,0.00010769,2]
[346826489,1735309843364,-859.24,0.00010769,2]
[346826490,1735309843373,-4611.49,0.00010769,2]
[346826491,1735309843382,-3566.7,0.00010769,2]
[346826492,1735309843392,-761.13,0.00010769,2]
[346826493,1735309843402,-500.0,0.00010769,2]
[346826494,1735309843411,-6845.06,0.00010769,2]
[346826495,1735309843420,-945.65,0.00010769,2]
[346826496,1735309843430,-7814.35,0.00010769,2]
[346826497,1735309843707,-4536.93,0.00010769,2]
[346826498,1735309843717,-3024.62,0.00010769,2]
[346826499,1735309843728,-2573.46,0.00010769,2]
[346826500,1735309843741,-500.0,0.00010769,2]
[346826501,1735309843752,-13409.4,0.00010769,2]
[346826502,1735309843762,-3137.47,0.00010769,2]
[346826503,1735309843773,-5181.01,0.00010769,2]
[346826504,1735309843783,-1036.03,0.00010769,2]
[346826505,1735309843792,-2560.3,0.00010769,2]
[346826506,1735309843802,-3494.99,0.00010769,2]
[346826507,1735309843816,-500.0,0.00010769,2]
[346826508,1735309843826,-1684.33,0.00010769,2]
[346826509,1735309843835,-1821.04,0.00010769,2]
[346826510,1735309843845,-2758.21,0.00010769,2]
[346826511,1735309843855,-3153.07,0.00010769,2]
[346826512,1735309843865,-766.39,0.00010769,2]
[346826513,1735309843875,-500.0,0.00010769,2]
[346826514,1735309843884,-1007.77,0.00010769,2]
[346826515,1735309843894,-2736.97,0.00010769,2]
[346826516,1735309843903,-791.11,0.00010769,2]
[346826517,1735309843912,-250000.0,0.0001077,2]
[346826518,1735309843922,-216.72523126,0.0001077,2]
[346826519,1735309843931,-503.19994307,0.00010771,2]
[346826520,1735309843941,-500.0,0.00010771,2]
[346826521,1735309843951,-500.0,0.00010771,2]
[346826522,1735309843961,-500.0,0.00010771,2]
[346826523,1735309843970,-500.0,0.00010771,2]
[346826524,1735309843979,-1541.71,0.00010771,2]
[346826525,1735309843989,-500.0,0.00010771,2]
[346826526,1735309843998,-500.0,0.00010771,2]
[346826527,1735309844008,-500.0,0.00010771,2]
[346826528,1735309844019,-500.0,0.00010771,2]
[346826529,1735309844029,-962.84,0.00010771,2]
[346826530,1735309844038,-500.0,0.00010771,2]
[346826531,1735309844048,-500.0,0.00010771,2]
[346826532,1735309844058,-500.0,0.00010771,2]
[346826533,1735309844072,-657.18,0.00010771,2]
[346826534,1735309844082,-500.0,0.00010771,2]
[346826535,1735309844091,-500.0,0.00010771,2]
[346826536,1735309844100,-621.87873516,0.00010771,2]
[346826537,1735309844110,-601.28,0.00010771,2]
[346826538,1735309844119,-500.0,0.00010771,2]
[346826539,1735309844129,-500.0,0.00010771,2]
[346826540,1735309844139,-1221.06,0.00010771,2]
[346826541,1735309844148,-295.06997978,0.00010771,2]
[346826542,1735309844158,-500.0,0.00010771,2]
[346826543,1735309844168,-500.0,0.00010771,2]
[346826544,1735309844178,-500.0,0.00010771,2]
[346826545,1735309844187,-500.0,0.00010771,2]
[346826546,1735309844196,-500.0,0.00010771,2]
[346826547,1735309844206,-1294.04,0.00010771,2]
[346826548,1735309844216,-957.79,0.00010771,2]
[346826549,1735309844226,-1797.81,0.00010771,2]
[346826550,1735309844235,-500.0,0.00010771,2]
[346826551,1735309844244,-1227.03,0.00010771,2]
[346826552,1735309844254,-500.0,0.00010771,2]
[346826553,1735309844263,-500.0,0.00010771,2]
[346826554,1735309844273,-1414.93,0.00010771,2]
[346826555,1735309844282,-500.0,0.00010771,2]
[346826556,1735309844292,-1055.73,0.00010771,2]
[346826557,1735309844301,-500.0,0.00010771,2]
[346826558,1735309844314,-500.0,0.00010771,2]
[346826559,1735309844324,-500.0,0.00010771,2]
[346826560,1735309844333,-938.5,0.00010771,2]
[346826561,1735309844343,-500.0,0.00010771,2]
[346826562,1735309844353,-677.39,0.00010771,2]
[346826563,1735309844362,-500.0,0.00010771,2]
[346826564,1735309844371,-881.26,0.00010771,2]
[346826565,1735309844381,-1266.09,0.00010771,2]
[346826566,1735309844390,-500.0,0.00010771,2]
[346826567,1735309844399,-827.5,0.00010771,2]
[346826568,1735309844409,-726.34,0.00010771,2]
[346826569,1735309844419,-500.0,0.00010771,2]
[346826570,1735309844429,-1425.27,0.00010771,2]
[346826571,1735309844439,-650.04,0.00010771,2]
[346826572,1735309844450,-500.0,0.00010771,2]
[346826573,1735309844459,-630.2,0.00010771,2]
[346826574,1735309844469,-1428.19,0.00010771,2]
[346826575,1735309844478,-789.3,0.00010771,2]
[346826576,1735309844489,-500.0,0.00010771,2]
[346826577,1735309844498,-500.0,0.00010771,2]
[346826578,1735309844508,-1349.46,0.00010771,2]
[346826579,1735309844518,-658.39,0.00010771,2]
[346826580,1735309844528,-500.0,0.00010771,2]
[346826581,1735309844537,-500.0,0.00010771,2]
[346826582,1735309844548,-509.38378782,0.00010771,2]
[346826583,1735309844557,-539.9,0.00010771,2]
[346826584,1735309844568,-500.0,0.00010771,2]
[346826585,1735309844578,-236.528145,0.00010771,2]
[346826586,1735309844588,-516.16443679,0.00010771,2]
[346826587,1735309844598,-500.0,0.00010771,2]
[346826588,1735309844607,-887.7,0.00010771,2]
[346826589,1735309844617,-500.0,0.00010771,2]
[346826590,1735309844627,-500.0,0.00010771,2]
[346826591,1735309844636,-500.0,0.00010771,2]
[346826592,1735309844646,-705.97,0.00010771,2]
[346826593,1735309844655,-500.0,0.00010771,2]
[346826594,1735309844665,-784.8,0.00010771,2]
[346826595,1735309844674,-500.0,0.00010771,2]
[346826596,1735309844683,-920.29,0.00010771,2]
[346826597,1735309844693,-500.0,0.00010771,2]
[346826598,1735309844702,-2259.87,0.00010771,2]
[346826599,1735309844711,-1751.61,0.00010771,2]
[346826600,1735309844721,-500.0,0.00010771,2]
[346826601,1735309844730,-657.63,0.00010771,2]
[346826602,1735309844740,-500.0,0.00010771,2]
[346826603,1735309844750,-1105.3,0.00010771,2]
[346826604,1735309844759,-500.0,0.00010771,2]
[346826605,1735309844770,-500.0,0.00010771,2]
[346826606,1735309844780,-1089.94,0.00010771,2]
[346826607,1735309844789,-500.0,0.00010771,2]
[346826608,1735309844799,-1817.63,0.00010771,2]